bitfinex-derivatives/quotes_BNBF0:USTF0_20250309
["timestamp","ask_amount","ask_price","bid_price","bid_amount"]
[1741543865616,0.882,555.42,555.12,0.30117812]
[1741543865828,0.882,555.42,555.13,0.30117812]
[1741543866015,0.882,555.42,555.14,0.30117812]
[1741543866215,0.882,555.42,555.15,0.30117812]
[1741543866414,0.882,555.42,555.16,0.30117812]
[1741543866615,0.882,555.42,555.09,0.36030193]
[1741543866616,0.882,555.42,555.17,0.30117812]
[1741543866812,0.882,555.42,555.18,0.30117812]
[1741543867012,0.882,555.42,555.19,0.30117812]
[1741543867318,0.882,555.42,555.24,1.34002099]
[1741543867719,0.882,555.42,555.25,0.30108347]
[1741543867921,0.882,555.42,555.26,0.30108347]
[1741543868120,0.882,555.42,555.27,0.30108347]
[1741543868417,0.882,555.42,555.28,0.30108347]
[1741543868617,0.882,555.42,555.29,0.30108347]
[1741543868819,0.738,555.45,555.3,0.30108347]
[1741543869024,0.738,555.45,555.31,0.30108347]
[1741543869220,0.738,555.45,555.3,1.60802519]
[1741543869520,0.738,555.45,555.31,0.66124828]
[1741543869720,0.738,555.45,555.32,0.30108909]
[1741543870318,0.738,555.45,555.33,0.30108909]
[1741543870519,0.738,555.45,555.34,0.30108909]
[1741543870819,0.738,555.45,555.35,0.30108909]
[1741543871019,0.738,555.45,555.36,0.30108909]
[1741543871219,0.738,555.45,555.31,0.36015919]
[1741543871420,0.738,555.45,555.32,0.30097764]
[1741543871725,0.738,555.45,555.43,1.34128763]
[1741543872020,0.738,555.45,555.44,0.30097764]
[1741543873120,0.738,555.45,555.44,0.30101346]
[1741543873817,0.738,555.45,555.43,1.34128763]
[1741543874017,0.738,555.45,555.44,0.30105054]
[1741543876719,0.23153638,555.45,555.44,0.30105054]
[1741543877417,0.42435619,555.52,555.44,0.30105054]
[1741543877725,0.42435619,555.52,555.32,1.60802519]
[1741543877726,0.42435619,555.52,555.45,0.30105054]
[1741543878217,0.42435619,555.52,555.46,0.30105054]
[1741543878436,0.42435619,555.52,555.34,2.74634574]
[1741543878720,0.42435619,555.52,555.35,0.30098486]
[1741543878918,0.42435619,555.52,555.36,0.30098486]
[1741543879121,0.42435619,555.52,555.37,0.30098486]
[1741543879316,0.42435619,555.52,555.38,0.30098486]
[1741543879521,0.42435619,555.52,555.34,2.74634574]
[1741543879522,0.42435619,555.52,555.39,0.30098486]
[1741543879722,0.42435619,555.52,555.4,0.30098486]
[1741543879923,0.42435619,555.52,555.35,0.30098486]
[1741543880223,0.42435619,555.52,555.34,1.33704444]
[1741543880423,0.42435619,555.52,555.35,0.30093341]
[1741543880624,0.42435619,555.52,555.36,0.30093341]
[1741543880825,0.42435619,555.52,555.37,0.30093341]
[1741543881022,0.42435619,555.52,555.38,0.30093341]
[1741543881223,0.42435619,555.52,555.39,0.30093341]
[1741543881525,0.42435619,555.52,555.34,1.33704444]
[1741543881725,0.42435619,555.52,555.35,0.30093501]
[1741543881926,0.42435619,555.52,555.36,0.30093501]
[1741543882122,0.42435619,555.52,555.37,0.30093501]
[1741543882419,0.42435619,555.52,555.38,0.30093501]
[1741543882619,0.42435619,555.52,555.35,0.30093501]
[1741543882921,0.42435619,555.52,555.36,0.30093501]
[1741543883225,0.42435619,555.52,555.37,0.66105529]
[1741543883520,0.42435619,555.52,555.38,0.30093501]
[1741543883724,0.42435619,555.52,555.37,0.36012028]
[1741543883919,0.42435619,555.52,555.39,0.36010731]
[1741543884125,0.42435619,555.52,555.4,0.30083834]
[1741543884324,0.42435619,555.52,555.41,0.66093268]
[1741543884526,0.42435619,555.52,555.42,0.30083834]
[1741543884725,0.42435619,555.52,555.43,0.30083834]
[1741543884925,0.42435619,555.52,555.44,0.30083834]
[1741543885123,0.42435619,555.52,555.45,0.30083834]
[1741543885323,0.30267229,555.52,555.46,0.66090027]
[1741543885527,0.12036572,555.52,555.47,0.66089378]
[1741543885721,0.12036572,555.52,555.48,0.30083834]
[1741543885925,0.12036572,555.52,555.49,0.66088082]
[1741543886133,0.08604837,555.52,555.5,0.30083834]
[1741543886327,0.08604837,555.52,555.51,0.30083834]
[1741543887727,0.32228407,555.78,555.51,0.30083834]
[1741543887931,0.32228407,555.78,555.52,0.30083834]
[1741543888127,0.32228407,555.78,555.53,0.30083834]
[1741543888327,0.32228407,555.78,555.54,0.30083834]
[1741543888628,0.32228407,555.78,555.55,0.30083834]
[1741543888842,0.32228407,555.78,555.56,0.30083834]
[1741543889127,0.32228407,555.78,555.57,0.30083834]
[1741543889626,0.32228407,555.78,555.58,0.30083834]
[1741543889827,0.32228407,555.78,555.49,0.36004248]
[1741543889828,0.32228407,555.78,555.59,0.30083834]
[1741543890030,0.32228407,555.78,555.6,0.30083834]
[1741543890229,0.32228407,555.78,555.61,0.30083834]
[1741543890430,0.32228407,555.78,555.62,0.30083834]
[1741543890630,0.32228407,555.78,555.51,0.30083834]
[1741543891929,0.32228407,555.78,555.52,0.3011125]
[1741543892130,0.32228407,555.78,555.51,0.3011125]
[1741543892332,0.32228407,555.78,555.52,0.3011125]
[1741543892525,0.32228407,555.78,555.53,0.3011125]
[1741543892731,0.32228407,555.78,555.54,0.66112258]
[1741543892929,0.32228407,555.78,555.54,0.36001008]
[1741543893127,0.32228407,555.78,555.55,0.30103317]
[1741543893326,0.32228407,555.78,555.56,0.30103317]
[1741543893528,0.32228407,555.78,555.57,0.30103317]
[1741543893732,0.23038817,555.78,555.58,0.30103317]
[1741543893933,0.23038817,555.78,555.54,0.36001008]
[1741543893934,0.23038817,555.78,555.59,0.30103317]
[1741543894133,0.23038817,555.78,555.6,0.30103317]
[1741543894330,0.23038817,555.78,555.61,0.30103317]
[1741543894529,0.23038817,555.78,555.62,0.30103317]
[1741543894733,0.23038817,555.78,555.63,0.30103317]
[1741543894932,0.23038817,555.78,555.66,1.59889863]
[1741543895133,0.23038817,555.78,555.67,0.30103317]
[1741543895337,0.23038817,555.78,555.66,1.59889863]
[1741543895338,0.23038817,555.78,555.68,0.30103317]
[1741543895537,0.23038817,555.78,555.69,0.66094607]
[1741543895735,0.23038817,555.78,555.7,0.66093959]
[1741543895933,0.23038817,555.78,555.71,0.66093311]
[1741543896154,0.23038817,555.78,555.72,0.66092664]
[1741543896337,0.23038817,555.78,555.73,0.66092016]
[1741543896534,0.23038817,555.78,555.73,0.35988699]
[1741543896732,0.23038817,555.78,555.74,0.66079872]
[1741543896936,0.23038817,555.78,555.75,0.30091821]
[1741543897132,0.885,556.18,555.75,0.30091821]
[1741543897333,0.885,556.18,555.76,0.35986756]
[1741543897534,0.885,556.18,555.77,0.30091821]
[1741543897733,0.885,556.18,555.78,0.35985461]
[1741543898137,0.885,556.18,555.79,0.30091821]
[1741543898334,0.885,556.18,555.8,0.35984166]
[1741543898542,0.885,556.18,555.81,0.30091821]
[1741543898845,0.885,556.18,555.82,0.35982872]
[1741543899141,0.885,556.18,555.83,0.30091821]
[1741543899742,0.885,556.18,555.84,0.35981577]
[1741543900036,0.885,556.18,555.85,0.30091821]
[1741543900244,0.885,556.18,555.86,0.35980282]
[1741543900441,0.885,556.18,555.87,0.30091821]
[1741543900635,0.885,556.18,555.88,0.35978988]
[1741543900838,0.885,556.18,555.89,0.30091821]
[1741543901040,0.885,556.18,555.9,0.35977693]
[1741543901235,0.885,556.18,555.91,0.30091821]
[1741543901438,0.885,556.18,555.92,0.35976399]
[1741543901639,0.885,556.18,555.93,0.30091821]
[1741543901939,0.885,556.18,555.94,0.66068918]
[1741543902139,0.885,556.18,555.95,0.30093813]
[1741543903336,0.885,556.18,555.96,0.35973811]
[1741543903537,0.885,556.18,555.97,0.30093813]
[1741543903736,0.885,556.18,555.98,0.35972516]
[1741543904041,0.885,556.18,555.99,0.30093813]
[1741543904246,0.885,556.18,556.0,0.35971223]
[1741543904436,0.885,556.18,556.01,0.30093813]
[1741543904641,0.885,556.18,556.0,0.35971223]
[1741543907141,0.929,556.21,556.0,0.35971223]
[1741543914849,0.31288211,556.32,556.0,0.35971223]
[1741543915547,1.45432823,556.5,556.0,0.35971223]
[1741543915753,1.45432823,556.49,556.0,0.35971223]
[1741543916649,1.45432823,556.48,556.0,0.35971223]
[1741543916847,1.12015009,556.47,556.0,0.35971223]
[1741543917147,1.12015009,556.46,556.0,0.35971223]
[1741543917356,3.78078535,556.46,556.0,0.35971223]
[1741543917554,1.12015009,556.45,556.0,0.35971223]
[1741543917753,1.12015009,556.44,556.0,0.35971223]
[1741543918053,1.12015009,556.43,556.0,0.35971223]
[1741543918255,1.12015009,556.42,556.0,0.35971223]
[1741543918456,1.12015009,556.41,556.0,0.35971223]
[1741543918855,4.90093544,556.4,556.0,0.35971223]
[1741543919075,3.78078535,556.4,556.0,0.35971223]
[1741543919252,1.45432823,556.39,556.0,0.35971223]
[1741543919860,1.45432823,556.38,556.0,0.35971223]
[1741543920557,1.45432823,556.37,556.0,0.35971223]
[1741543920956,1.45432823,556.36,556.0,0.35971223]
[1741543921660,3.78581061,556.35,556.0,0.35971223]
[1741543922058,1.12052736,556.34,556.0,0.35971223]
[1741543922255,4.90633797,556.34,556.0,0.35971223]
[1741543922460,3.78581061,556.34,556.0,0.35971223]
[1741543922660,1.12072205,556.33,556.0,0.35971223]
[1741543923069,4.90640768,556.32,556.0,0.35971223]
[1741543923361,1.12059707,556.31,555.86,0.865]
[1741543923664,1.12059707,556.3,555.86,0.865]
[1741543923861,1.12059707,556.29,555.86,0.865]
[1741543924060,1.12059707,556.28,555.86,0.865]
[1741543924264,1.12059707,556.27,555.86,0.865]
[1741543924465,1.12059707,556.26,555.86,0.865]
[1741543924658,1.12059707,556.25,555.86,0.865]
[1741543924863,1.12059707,556.25,548.87,10.49511699]
[1741543924864,3.78581061,556.25,555.07,1.33358362]
[1741543925062,3.78581061,556.25,555.08,0.30121263]
[1741543925262,1.12158444,556.24,555.09,0.30121263]
[1741543925563,1.12149504,556.23,555.11,0.36028895]
[1741543925763,3.78581061,556.23,555.12,0.30121263]
[1741543925963,1.12152993,556.22,555.12,0.30121263]
[1741543926165,1.12152993,556.21,555.12,0.30121263]
[1741543926362,1.12097807,556.2,555.12,0.30121263]
[1741543926563,1.12097807,556.19,555.13,0.30121263]
[1741543926761,1.12097807,556.18,555.12,0.30121263]
[1741543927071,2.91420092,556.17,555.13,0.30121263]
[1741543927362,3.78581061,556.18,555.11,0.36028895]
[1741543927363,4.71261759,556.16,555.14,0.30121263]
[1741543927567,8.4984282,556.15,555.15,0.30121263]
[1741543927769,4.71149395,556.14,555.16,0.30121263]
[1741543927969,4.71149395,556.13,555.12,0.30121263]
[1741543928268,1.12097807,556.12,555.11,0.36028895]
[1741543928468,1.12097807,556.11,555.12,0.30129886]
[1741543928664,3.78581061,556.12,555.12,0.30129886]
[1741543928869,0.31310591,556.1,555.12,0.30129886]
[1741543929269,0.712,556.09,555.12,0.30129886]
[1741543929672,3.78581061,556.08,555.12,0.30129886]
[1741543929871,3.78581061,556.08,555.13,0.30129886]
[1741543930065,3.78581061,556.08,555.12,0.30129886]
[1741543930271,1.45432823,556.07,555.13,0.30129886]
[1741543930469,1.45432823,556.07,555.12,0.30129886]
[1741543930669,1.45432823,556.07,555.13,0.30129886]
[1741543930873,1.45432823,556.06,555.14,0.30129886]
[1741543931073,1.45432823,556.06,555.15,0.30129886]
[1741543931270,0.712,556.09,555.16,0.30129886]
[1741543931472,0.712,556.09,555.17,0.30129886]
[1741543931776,0.712,556.09,555.18,0.30129886]
[1741543931977,0.712,556.09,555.19,0.30129886]
[1741543932276,0.712,556.09,555.2,0.30129886]
[1741543932475,0.367,556.08,555.21,0.30129886]
[1741543932676,0.367,556.08,555.23,0.36021108]
[1741543932875,0.367,556.08,555.24,0.30129886]
[1741543933068,0.367,556.08,555.26,0.36019162]
[1741543933273,0.367,556.08,555.27,0.30129886]
[1741543933575,1.289,556.08,555.29,0.36017216]
[1741543933772,1.289,556.08,555.3,0.30129886]
[1741543934071,0.31306789,556.07,555.29,0.36017216]
[1741543934278,0.31306789,556.07,555.3,1.17226009]
[1741543934578,0.31306789,556.07,555.31,0.30126009]
[1741543936677,1.289,556.08,555.31,0.30126009]
[1741543936879,0.31307774,556.06,555.31,0.30126009]
[1741543937785,0.31307774,556.06,555.32,0.30130824]
[1741543938084,0.31307774,556.06,555.33,0.30130824]
[1741543938283,0.31307774,556.06,555.31,0.30130824]
[1741543938482,0.31307774,556.06,555.34,0.30130824]
[1741543938784,0.31307774,556.06,555.35,0.30130824]
[1741543938994,0.31307774,556.06,555.36,0.30130824]
[1741543939385,0.31307774,556.06,555.3,0.871]
[1741543939786,1.289,556.08,555.31,0.30134328]
[1741543939979,0.31310591,556.05,555.31,0.30134328]
[1741543940383,1.44914365,556.04,555.31,0.30134328]
[1741543940984,1.44914365,556.03,555.31,0.30134328]
[1741543941386,0.31310591,556.05,555.31,0.30134328]
[1741543941387,3.76719467,556.02,555.31,0.30134328]
[1741543941687,1.11381523,556.01,555.3,0.871]
[1741543941887,1.11381523,556.01,555.31,0.30140839]
[1741543942283,4.8810099,556.0,555.31,0.30140839]
[1741543942589,2.89485077,555.99,555.31,0.30140839]
[1741543942890,1.11381523,555.98,555.31,0.30140839]
[1741543943087,1.11381523,555.97,555.3,0.871]
[1741543943287,1.11381523,555.96,555.3,0.871]
[1741543943487,1.11381523,555.97,555.3,0.871]
[1741543943688,3.76719467,555.95,555.3,0.871]
[1741543943888,1.11381523,555.94,555.3,0.871]
[1741543944086,1.11381523,555.93,555.3,0.871]
[1741543944282,3.76719467,555.93,555.3,0.871]
[1741543944784,3.76719467,555.92,555.3,0.871]
[1741543945590,1.11299594,555.91,555.3,0.871]
[1741543945792,4.88019061,555.91,555.3,0.871]
[1741543945991,1.11299594,555.9,555.3,0.871]
[1741543946385,3.76719467,555.89,555.3,0.871]
[1741543946893,3.76719467,555.88,555.3,0.871]
[1741543947393,1.44914365,555.94,555.3,0.871]
[1741543947690,0.31319609,555.95,555.3,0.871]
[1741543947691,1.44914365,555.93,555.3,0.871]
[1741543947892,1.44914365,555.92,555.3,0.871]
[1741543948087,1.44914365,555.92,555.31,0.30143672]
[1741543948993,1.81614365,556.08,555.31,0.30143672]
[1741543949392,0.367,556.08,555.31,0.30143672]
[1741543949790,0.31312986,556.07,555.31,0.30143672]
[1741543950594,1.06912986,556.07,555.31,0.30143672]
[1741543951192,1.44914365,556.06,555.31,0.30143672]
[1741543951595,2.20514365,556.07,555.31,0.30143672]
[1741543951796,0.31314817,556.05,555.31,0.30143672]
[1741543952292,1.44914365,556.04,555.31,0.30143672]
[1741543952997,1.44914365,556.03,555.32,0.3601527]
[1741543953388,1.44914365,556.03,555.33,0.30143672]
[1741543953590,1.44914365,556.02,555.34,0.36013973]
[1741543954193,1.75077299,555.94,555.35,0.30141148]
[1741543954499,2.89588739,555.93,555.36,0.36012676]
[1741543954697,2.89588739,555.92,555.37,0.30141148]
[1741543954893,1.11380284,555.91,555.38,0.36011379]
[1741543955098,1.11380284,555.9,555.39,0.30141148]
[1741543955298,1.11380284,555.89,555.38,0.36011379]
[1741543955493,1.11380284,555.88,555.38,0.36011379]
[1741543955698,1.11380284,555.87,555.38,0.36011379]
[1741543955899,3.76621748,555.87,555.38,0.36011379]
[1741543956298,4.8802993,555.86,555.38,0.36011379]
[1741543956499,1.11408182,555.85,555.38,0.36011379]
[1741543956700,3.76621748,555.84,555.38,0.36011379]
[1741543956900,1.11396972,555.83,555.38,0.36011379]
[1741543957200,1.11396972,555.82,555.38,0.36011379]
[1741543957400,3.76621748,555.84,555.38,0.36011379]
[1741543957595,4.8803317,555.83,555.38,0.36011379]
[1741543957794,0.31318763,555.81,555.38,0.36011379]
[1741543958291,3.76621748,555.8,555.38,0.36011379]
[1741543958699,1.44914365,555.79,555.38,0.36011379]
[1741543958905,3.76621748,555.79,555.38,0.36011379]
[1741543959297,3.76621748,555.78,555.38,0.36011379]
[1741543959893,4.8809078,555.77,555.38,0.36011379]
[1741543960101,3.76621748,555.77,555.38,0.36011379]
[1741543960300,3.76621748,555.76,555.38,0.36011379]
[1741543960694,1.44914365,555.75,555.38,0.36011379]
[1741543960899,3.76621748,555.75,555.38,0.36011379]
[1741543961100,3.76621748,555.74,555.38,0.36011379]
[1741543961495,3.76621748,555.74,555.39,0.747]
[1741543962005,3.76621748,555.73,555.39,0.747]
[1741543962396,1.44914365,555.73,555.39,0.747]
[1741543963096,1.44914365,555.72,555.39,0.747]
[1741543963602,1.44914365,555.71,555.39,0.747]
[1741543963799,1.76238061,555.71,555.39,0.747]
[1741543964101,1.44914365,555.7,555.39,0.747]
[1741543964700,1.11554725,555.69,555.39,0.747]
[1741543964897,1.11554725,555.68,555.39,0.747]
[1741543965100,1.11554725,555.67,555.39,0.747]
[1741543965295,3.76966361,555.69,555.39,0.747]
[1741543965499,1.1158064,555.68,555.39,0.747]
[1741543965695,1.1158064,555.67,555.39,0.747]
[1741543965899,1.1158064,555.66,555.39,0.747]
[1741543966201,0.31323696,555.71,555.39,0.747]
[1741543966202,4.88547001,555.65,555.39,0.747]
[1741543966406,1.1155072,555.64,555.39,0.747]
[1741543966603,1.1155072,555.63,555.39,0.747]
[1741543966803,1.1155072,555.62,555.39,0.747]
[1741543967001,1.1155072,555.61,555.39,0.747]
[1741543967199,1.1155072,555.6,555.39,0.747]
[1741543967395,1.1155072,555.59,555.39,0.747]
[1741543967596,1.1155072,555.58,555.39,0.747]
[1741543967803,3.76966361,555.58,555.39,0.747]
[1741543968402,0.31330746,555.61,555.39,0.747]
[1741543968403,1.44914365,555.57,555.39,0.747]
[1741543969101,1.44914365,555.56,555.39,0.747]
[1741543969500,1.44914365,555.55,555.39,0.747]
[1741543970197,1.44914365,555.54,555.39,0.747]
[1741543970803,0.3132849,555.53,555.39,0.747]
[1741543971304,1.44914365,555.52,555.39,0.747]
[1741543971699,1.44914365,555.51,555.39,0.747]
[1741543972505,1.44914365,555.5,555.39,0.747]
[1741543972900,1.44914365,555.49,555.39,0.747]
[1741543973504,0.3132849,555.53,555.39,0.747]
[1741543973900,1.45024448,555.52,555.39,0.747]
[1741543974307,0.3132849,555.53,555.39,0.747]
[1741543974308,3.77067989,555.51,555.39,0.747]
[1741543974608,1.11508456,555.5,555.39,0.747]
[1741543974806,1.11508456,555.49,555.39,0.747]
[1741543975006,1.11500767,555.48,555.39,0.747]
[1741543975206,1.11503728,555.47,555.39,0.747]
[1741543975407,1.11503728,555.46,555.39,0.747]
[1741543975608,3.77067989,555.47,555.39,0.747]
[1741543975801,3.77067989,555.45,555.39,0.747]
[1741543976407,3.77067989,555.44,555.39,0.747]
[1741543976903,1.76357169,555.43,555.39,0.747]
[1741543977503,1.45024448,555.42,555.39,0.747]
[1741543977910,0.31332721,555.43,555.39,0.747]
[1741543978707,1.11510252,555.59,555.39,0.747]
[1741543978913,0.31327362,555.46,555.39,0.747]
[1741543979211,3.77054519,555.58,555.39,0.747]
[1741543979621,1.45020969,555.57,555.39,0.747]
[1741543979814,1.45020969,555.56,555.39,0.747]
[1741543980416,1.45020969,555.55,555.39,0.747]
[1741543981114,1.45020969,555.54,555.39,0.747]
[1741543981506,1.45020969,555.53,555.39,0.747]
[1741543982014,1.45020969,555.52,555.39,0.747]
[1741543982723,0.31326798,555.57,555.39,0.747]
[1741543983111,1.45137619,555.56,555.39,0.747]
[1741543983508,0.31326798,555.57,554.37,1.33358362]
[1741543983712,0.31326798,555.57,554.39,0.36075686]
[1741543983913,1.11649614,555.56,554.4,0.30154327]
[1741543984114,2.9024829,555.55,554.41,0.30154327]
[1741543984314,2.9024829,555.55,554.39,0.36075686]
[1741543984315,2.9024829,555.54,554.42,0.30154327]
[1741543984616,4.70285787,555.53,554.43,0.30154327]
[1741543984809,8.12400667,555.52,554.44,0.30154327]
[1741543985007,8.12400667,555.52,554.39,0.36075686]
[1741543985008,8.12414594,555.51,554.41,1.33358362]
[1741543985206,8.12414594,555.5,554.42,0.30154327]
[1741543985407,8.12414594,555.49,554.42,0.30154327]
[1741543985606,8.12418322,555.48,554.42,0.30154327]
[1741543985820,8.12418322,555.47,554.42,0.30154327]
[1741543986021,8.12418322,555.46,554.42,0.30154327]
[1741543986215,1.75077299,555.44,554.42,0.30154327]
[1741543986409,7.58394256,555.43,554.42,0.30154327]
[1741543986611,8.12418322,555.42,554.42,0.30154327]
[1741543986820,11.89684866,555.41,554.42,1.29954327]
[1741543987116,8.12418322,555.4,554.43,0.30154327]
[1741543987415,8.12418322,555.39,554.43,0.30154327]
[1741543987610,8.12418322,555.38,554.43,0.30154327]
[1741543987811,8.12418322,555.37,554.43,0.30154327]
[1741543988011,8.12151494,555.36,554.43,0.30154327]
[1741543988213,8.12151494,555.35,554.44,0.30154327]
[1741543988517,1.75077299,555.27,554.45,0.30154327]
[1741543988713,4.6992753,555.26,554.46,0.30154327]
[1741543989016,4.69927632,555.25,554.47,0.30154327]
[1741543989212,1.11462868,555.24,554.43,0.30154327]
[1741543989517,1.11462868,555.23,554.43,0.30154327]
[1741543989811,1.48062868,555.22,554.43,0.30154327]
[1741543990015,0.366,555.22,554.43,0.30154327]
[1741543990313,3.77266544,555.21,554.43,0.30154327]
[1741543990524,1.1141041,555.2,554.43,0.30154327]
[1741543990819,3.77266544,555.2,554.43,0.30154327]
[1741543991018,3.77266544,555.19,554.44,0.3017644]
[1741543991315,0.366,555.22,554.45,0.3017644]
[1741543991620,0.366,555.22,554.46,0.3017644]
[1741543991817,1.4480514,555.21,554.47,0.3017644]
[1741543992014,1.4480514,555.21,554.48,0.3017644]
[1741543992317,1.4480514,555.21,554.49,0.3017644]
[1741543992515,1.4480514,555.2,554.43,0.3017644]
[1741543992716,1.4480514,555.2,554.44,0.3017644]
[1741543992916,1.4480514,555.2,554.42,0.998]
[1741543992917,1.4480514,555.2,554.43,0.3017644]
[1741543993115,1.4480514,555.19,554.45,0.3017644]
[1741543993314,1.4480514,555.19,554.46,0.3017644]
[1741543993520,1.4480514,555.18,554.46,0.3017644]
[1741543993819,1.11328842,555.17,554.42,0.998]
[1741543994013,1.11328842,555.16,554.43,0.3019087]
[1741543994213,1.11328842,555.15,554.42,0.998]
[1741543994420,1.11328842,555.14,554.42,0.998]
[1741543994719,4.69642984,555.13,554.42,0.998]
[1741543995020,8.12103363,555.12,554.42,0.998]
[1741543995218,8.12103363,555.11,554.42,0.998]
[1741543995418,8.12103363,555.1,554.42,0.998]
[1741543995618,8.11594578,555.09,554.42,0.998]
[1741543995819,8.11594578,555.08,554.42,0.998]
[1741543996019,1.75077299,554.99,554.42,0.998]
[1741543996215,1.11085603,554.98,554.42,0.998]
[1741543996418,1.75077299,554.99,554.42,0.998]
[1741543996620,3.76440294,554.97,554.43,0.30188106]
[1741543997022,2.31635154,555.11,554.43,0.30188106]
[1741543997623,1.44413435,555.1,554.43,0.30188106]
[1741543998219,4.86425772,555.09,554.43,0.30188106]
[1741543998523,1.10988493,555.08,554.43,0.30188106]
[1741543998828,6.6395459,555.07,554.43,0.30188106]
[1741543999024,5.22856872,555.06,554.42,0.998]
[1741543999222,1.75077299,555.02,554.42,0.998]
[1741543999427,4.68783985,555.01,554.42,0.998]
[1741543999722,5.22907143,555.0,554.42,0.998]
[1741543999920,4.68834256,554.99,554.42,0.998]
[1741544000121,4.68834256,554.98,554.42,0.998]
[1741544000323,2.88259453,554.97,554.42,0.998]
[1741544000516,1.10988493,554.96,554.42,0.998]
[1741544000715,1.10988493,554.95,554.42,0.998]
[1741544000918,1.10988493,554.94,554.42,0.998]
[1741544001123,3.75397974,554.94,554.42,0.998]
[1741544001515,3.75397974,554.94,554.43,0.30194955]
[1741544001923,0.941,554.97,554.43,0.30194955]
[1741544005931,0.31366045,554.96,554.43,0.30194955]
[1741544006331,1.44010981,554.95,554.43,0.30194955]
[1741544007134,3.74415507,554.94,554.43,0.30194955]
[1741544007334,3.74415507,554.94,554.44,0.30190094]
[1741544007635,0.31366045,554.96,554.42,0.998]
[1741544007636,3.74415507,554.93,554.45,0.30190094]
[1741544007829,3.74415507,554.93,554.43,0.30190094]
[1741544008032,3.74415507,554.93,554.44,0.30190094]
[1741544008233,3.74415507,554.93,554.43,0.30190094]
[1741544008430,3.74415507,554.92,554.43,0.30190094]
[1741544008931,1.75378864,554.91,554.43,0.30190094]
[1741544009135,4.4238339,554.91,554.4,0.30190094]
[1741544009453,1.44010981,554.9,554.4,0.30190094]
[1741544010238,0.366,554.91,554.4,0.30190094]
[1741544011942,0.366,554.91,554.4,1.10290094]
[1741544012135,0.366,554.91,554.41,0.30190094]
[1741544012540,0.366,554.91,554.4,0.801]
[1741544012740,0.366,554.91,554.41,0.3018407]
[1741544013240,1.44093525,554.9,554.41,0.3018407]
[1741544013834,0.366,554.91,554.41,0.3018407]
[1741544014542,0.366,554.91,554.42,0.30175233]
[1741544014742,0.366,554.91,554.41,0.30175233]
[1741544015041,0.366,554.91,554.42,0.30175233]
[1741544015243,0.366,554.91,554.41,0.30175233]
[1741544017643,1.44321827,554.9,554.41,0.30175233]
[1741544018043,0.366,554.91,554.42,0.30188618]
[1741544018344,0.31369014,554.89,554.43,0.30188618]
[1741544018538,0.31369014,554.89,554.41,0.30188618]
[1741544018744,0.31369014,554.89,554.42,0.30188618]
[1741544018940,0.31369014,554.89,554.41,0.30188618]
[1741544019244,0.366,554.91,554.42,0.30188618]
[1741544019438,0.366,554.91,554.41,0.30188618]
[1741544019637,0.67966894,554.91,554.41,0.30188618]
[1741544020646,0.366,554.91,554.41,0.30188618]
[1741544020838,0.31368024,554.9,554.41,0.30188618]
[1741544021339,1.44475806,554.89,554.41,0.30188618]
[1741544021639,0.31368024,554.9,554.41,0.30188618]
[1741544022251,0.31368024,554.9,554.4,0.801]
[1741544022658,1.44496864,554.89,554.4,0.801]
[1741544023448,1.44496864,554.88,554.4,0.801]
[1741544023845,1.44496864,554.87,554.4,0.801]
[1741544024643,1.44496864,554.86,554.4,0.801]
[1741544025146,1.75872807,554.86,554.4,0.801]
[1741544025442,1.44496864,554.85,554.41,0.3020149]
[1741544025647,1.44496864,554.85,554.4,0.801]
[1741544026048,1.11090787,554.84,554.4,0.801]
[1741544026346,1.11090787,554.83,554.4,0.801]
[1741544026548,1.11090787,554.82,554.4,0.801]
[1741544026847,1.11090787,554.81,554.4,0.801]
[1741544027145,4.8677617,554.8,554.4,0.801]
[1741544027346,1.11090787,554.79,554.4,0.801]
[1741544027541,1.11090787,554.78,554.4,0.801]
[1741544027746,1.11090787,554.77,554.4,0.801]
[1741544027941,3.75685383,554.77,554.4,0.801]
[1741544028143,1.11090787,554.76,554.4,0.801]
[1741544028541,2.8863703,554.75,554.4,0.801]
[1741544028748,2.8863703,554.74,554.4,0.801]
[1741544028941,1.11090787,554.73,554.4,0.801]
[1741544029139,1.11090787,554.72,554.4,0.801]
[1741544029339,3.75685383,554.75,554.4,0.801]
[1741544029340,1.11090787,554.71,554.4,0.801]
[1741544029542,1.11090787,554.7,554.4,0.801]
[1741544029742,1.11090787,554.69,554.4,0.801]